Cogmind - Beta 13 *** ADVENTURER MODE // 2024.04.06 @ 21:34:47 Player: Indigo Result: Destroyed by G-34 Mercenary with Small Laser Performance ------------- Evolutions (1) 500 Regions Visited (3) 600 Robots Destroyed (61) 305 Value Destroyed (1306) 1306 Prototype IDs (4) 80 Alien Tech Used (0) 0 Bonus (42) 42 TOTAL SCORE: 2833 Bonus ------- High Alert Combat Kills 42 Cogmind --------- Core Integrity 0/400 Matter 277/300 Energy 122/125 System Corruption 0% Temperature Cool (18) Movement Rolling (100) Location -9/Materials Parts ------- > --- POWER (1) -------- Light Ion Engine > --- PROPULSION (4) --- Compact Wheel Compact Wheel Compact Wheel > --- UTILITY (2) ------ Sensor Array Medium Armor Plating > --- WEAPON (2) ------- Shock Rifle Heavy Assault Rifle > --- INVENTORY (5) ---- Light Ion Engine Hover Unit Flight Unit Improved Flight Unit Heavy Flail Peak State ------------ > --- POWER ------------ Light Ion Engine > --- PROPULSION ------- Aluminum Leg Aluminum Leg Flight Unit > --- UTILITY ---------- Decoy Drone Bay > --- WEAPON ----------- Small Laser Heavy Flail > --- INVENTORY -------- Light Ion Engine [Rating: 22] Favorites ----------- Power Light Ion Engine Engine Light Ion Engine Power Core Light Nuclear Core Propulsion Light Treads Treads Light Treads Leg Aluminum Leg Wheel Compact Wheel Hover Unit Hover Unit Flight Unit Flight Unit Utility Weapon Shielding Device Sensor Array Storage Large Storage Unit Protection Weapon Shielding Weapon Assault Rifle Energy Gun Shock Rifle Ballistic Gun Assault Rifle Launcher EMP Blaster Impact Weapon Heavy Flail Build | -11 -10 -10 -9 ------- Run | Yrd Mat Min Mat Slots Evolved 2 | . . . 2 Power . | . . . . Propulsion 2 | . . . 2 Utility . | . . . . Weapon . | . . . . Parts Attached 58 | 5 17 9 27 Power 11 | 1 5 2 3 Engine 10 | 1 4 2 3 Core 1 | . 1 . . Reactor . | . . . . Propulsion 26 | 2 7 1 16 Treads 4 | 2 2 . . Leg 7 | . . . 7 Wheel 3 | . . . 3 Hover 1 | . 1 . . Flight 11 | . 4 1 6 Utility 12 | . 3 5 4 Device 8 | . 1 4 3 Storage 1 | . 1 . . Processor . | . . . . Hackware . | . . . . Protection 3 | . 1 1 1 Artifact . | . . . . Weapon 9 | 2 2 1 4 Energy Gun 2 | . . . 2 Energy Cannon . | . . . . Ballistic Gun 4 | 2 1 . 1 Ballistic Cannon . | . . . . Launcher 1 | . . . 1 Special Weapon . | . . . . Impact Weapon 2 | . 1 1 . Slashing Weapon . | . . . . Piercing Weapon . | . . . . Special Melee Weapon . | . . . . Unidentified Prototypes 1 | . . 1 . Parts Lost 18 | . 1 3 14 Power 2 | . . 1 1 Propulsion 9 | . 1 1 7 Utility 4 | . . 1 3 Weapon 3 | . . . 3 Highest Loss Streak 5 | . 1 2 5 To Critical Strikes . | . . . . Average Slot Usage (%) 78 | . 92 83 64 Engine 9 | . 13 1 7 Treads 10 | . 24 . . Leg 2 | . . . 5 Wheel 3 | . . . 8 Flight 9 | . 3 27 11 Device 6 | . 1 13 10 Storage 4 | . 9 . . Protection 8 | . 12 13 3 Energy Gun 2 | . . . 4 Ballistic Gun 11 | . 23 . 2 Impact Weapon 8 | . 2 26 9 Naked Turns . | . . . . Heaviest Build 30 | 6 30 7 21 Greatest Support 48 | 40 40 8 48 Greatest Overweight (x) 4 | . 1 . 4 Average Overweight (x) . | . . . . Largest Inventory Capacity 15 | 5 15 5 5 Average Capacity 7 | 5 11 5 5 Most Carried 8 | . 8 5 5 Average Carried 3 | . 4 4 3 Final Capacity 5 | 5 5 5 5 Final Carried 5 | . 4 5 5 Class Distribution -------------------- 78% | Mutant 21% | Scavenger-Mutant Dominant Class ---------------- Mutant | -10/Materials Mutant | -10/Mines Scavenger-Mutant | -9/Materials Resources | -11 -10 -10 -9 ----------- Run | Yrd Mat Min Mat Matter Collected 965 | 220 372 70 303 Remotely . | . . . . Salvage Created 2036 | . 615 267 1154 Parts 100 | . 34 3 63 Haulers Intercepted 4 | . 2 . 2 Recyclers Shooed . | . . . . Parts Field Recycled . | . . . . Retrieved Matter . | . . . . Parts Self-Destructed . | . . . . Prevented . | . . . . Kills | -11 -10 -10 -9 ------- Run | Yrd Mat Min Mat Combat Hostiles Destroyed 40 | . 10 3 27 Melee 12 | . 2 2 8 Guns 17 | . 8 . 9 AOE 2 | . . . 2 Classes Destroyed 9 | . 6 . 3 Worker 4 | . 1 1 2 Hauler 4 | . 2 . 2 Recycler 4 | . 1 2 1 Operator 2 | . . . 2 Watcher 7 | . 2 . 5 Swarmer 16 | . 3 2 11 Grunt 17 | . 7 1 9 Brawler 1 | . . . 1 Sentry 6 | . . . 6 Best Kill Streak 6 | . 3 3 6 Combat Bots Only 6 | . 3 2 6 Max Kills in Single Turn 2 | . 1 1 2 Gunslinging . | . . . . Exploded 1 | . . . 1 Melee 1 | . 1 1 1 Uniques/NPCs Destroyed . | . . . . Combat | -11 -10 -10 -9 -------- Run | Yrd Mat Min Mat Hostile Shots Fired 293 | . 33 17 243 Missed 74 | . 6 6 62 Damage Taken 1851 | . 271 79 1501 Core 492 | . 45 41 406 Absorbed by Shields 81 | . . . 81 Redirected to Shielding 34 | . 11 . 23 Ignored by Resistances 599 | . 84 24 491 Regen/Repaired (Parts) 124 | . . . 124 Core Remaining (%) 82 | 100 . 65 . Volleys Fired 78 | . 32 . 46 Largest 2 | . 2 . 2 Hottest 73 | . 40 . 73 Shots Fired 122 | . 62 . 60 Gun 121 | . 62 . 59 Cannon . | . . . . Launcher 1 | . . . 1 Special . | . . . . Kinetic 76 | . 62 . 14 Thermal 31 | . . . 31 Explosive . | . . . . Electromagnetic 15 | . . . 15 Robot Hit Streak 28 | . 14 . 28 Robot Miss Streak 1 | . 1 . 1 Penetration Max . | . . . . Secondary Targets 1 | . 1 . . Max Gunslinging Chain 1 | . 1 . . Shots Hit Robots 170 | . 59 7 104 Core Hits 60 | . 25 3 32 Critical Kills 1 | . 1 . . Critical Parts Destroyed 11 | . 1 1 9 Critical Strikes 12 | . 2 1 9 Smash 12 | . 2 1 9 Melee Attacks 86 | . 11 10 65 Impact 86 | . 11 10 65 Slashing . | . . . . Piercing . | . . . . Sneak Attacks 9 | . 2 3 4 Combat Hostiles 2 | . 1 . 1 Follow-up Attacks 5 | . . . 5 Damage Inflicted 4334 | . 943 266 3125 Guns 1262 | . 621 . 641 Cannons . | . . . . Explosions 212 | . . . 212 Melee 2848 | . 310 266 2272 Ramming 12 | . 12 . . Kinetic 774 | . 621 . 153 Thermal 491 | . . . 491 Explosive . | . . . . Electromagnetic 209 | . . . 209 Impact 2848 | . 310 266 2272 Slashing . | . . . . Piercing . | . . . . Highest Corruption 1 | . 1 1 . Average Corruption 1 | . 1 1 . Corruption Purged . | . . . . Corruption Blocked . | . . . . Effects 10 | . 9 1 . Message Errors 7 | . 6 1 . Energy Discharges 1 | . 1 . . Parts Rejected 1 | . 1 . . Data Loss (minor) 1 | . 1 . . Overload Shots . | . . . . Overflow Damage 833 | . 60 44 729 Projectiles 6 | . . . 6 Explosions . | . . . . Melee 827 | . 60 44 723 Knockbacks 14 | . . 1 13 Impact 12 | . . 1 11 Kinetic . | . . . . Secondary 2 | . . . 2 Self-Inflicted Damage . | . . . . Shots . | . . . . Rammed 4 | . 4 . . Targets Rammed 4 | . 4 . . Kicked . | . . . . Crushed . | . . . . Highest Temperature 46 | . 5 . 46 Average Temperature 16 | . 3 . 16 Received Heat Transfer 804 | . 165 9 630 Siege Activations . | . . . . Robots Corrupted 1 | . . . 1 Combat Hostiles 1 | . . . 1 Parts Fried 24 | . . 5 19 Impact Corruptions 37 | . 2 3 32 Robots Melted . | . . . . Combat Hostiles . | . . . . Parts Melted . | . . . . Heat Transferred 900 | . . . 900 Parts Sabotaged . | . . . . Parts Stolen . | . . . . Parts Stripped . | . . . . Power Chain Reactions 2 | . . . 2 Alert | -11 -10 -10 -9 ------- Run | Yrd Mat Min Mat Peak Influence 495 | . 193 105 495 Initial 31 | . . . 31 Average 164 | . 48 89 315 Maximum Alert Level 2 | . . . 2 Low Security (%) 64 | 100 100 100 16 Level 1 27 | . . . 64 Level 2 8 | . . . 19 Level 3 . | . . . . Level 4 . | . . . . Level 5 . | . . . . High Security . | . . . . Max Security . | . . . . Squads Dispatched 5 | . . . 5 Investigation 2 | . . . 2 Extermination . | . . . . Reinforcement 3 | . . . 3 Assault . | . . . . Garrison . | . . . . Intercept . | . . . . Searches Triggered . | . . . . Construction Impeded . | . . . . Haulers Reinforced . | . . . . Active Scanning Responses . | . . . . Cargo Convoy Interrupts . | . . . . Stealth | -11 -10 -10 -9 --------- Run | Yrd Mat Min Mat Distress Signals 8 | . 2 . 6 Communications Jammed . | . . . . Distress Signals . | . . . . Times Spotted 86 | . 19 6 61 Peak Tracking Total 11 | . 5 5 11 Tactical Retreats 7 | . 2 1 4 Traps | -11 -10 -10 -9 ------- Run | Yrd Mat Min Mat Traps Triggered 3 | . 2 . 1 Indirectly . | . . . . Trap Hack Attempts . | . . . . Triggered . | . . . . Disarmed . | . . . . Reprogrammed . | . . . . Reused 1 | . . . 1 Traps Extracted . | . . . . Installed 1 | . . . 1 Triggered 1 | . . . 1 Most Traps Carried 1 | . . 1 1 Machines | -11 -10 -10 -9 ---------- Run | Yrd Mat Min Mat Machines Disabled 3 | . . . 3 Max in Single Turn 1 | . . . 1 Machines Repaired . | . . . . Machines Dismantled . | . . . . Machines Sabotaged . | . . . . Overloaded Fab Kills . | . . . . Hacking | -11 -10 -10 -9 --------- Run | Yrd Mat Min Mat Machines Accessed 6 | . . 2 4 Terminals . | . . . . Fabricators . | . . . . Repair Stations 1 | . . . 1 Recycling Units 1 | . . . 1 Scanalyzers 2 | . . . 2 Garrison Access . | . . . . Total Hacks 10 | . . 2 8 Successful 9 | . . 2 7 Failed 1 | . . . 1 Catastrophic . | . . . . Database Lockouts . | . . . . Manual . | . . . . Terminals . | . . . . Fabricators . | . . . . Repair Stations 2 | . . . 2 Recycling Units 3 | . . . 3 Scanalyzers 3 | . . . 3 Garrison Access . | . . . . Terminal Hacks 2 | . . 2 . Open Door 2 | . . 2 . Fabricator Hacks . | . . . . Repair Station Hacks 2 | . . . 2 Scan Component 1 | . . . 1 Repair 1 | . . . 1 Recycling Unit Hacks 2 | . . . 2 Report Inventory 1 | . . . 1 Retrieve Components 1 | . . . 1 Scanalyzer 3 | . . . 3 Insert Component 3 | . . . 3 Garrison Access Hacks . | . . . . Unauthorized Hacks . | . . . . Terminals . | . . . . Fabricators . | . . . . Repair Stations . | . . . . Recycling Units . | . . . . Scanalyzers . | . . . . Garrison Access . | . . . . Data Cores Recovered . | . . . . Used . | . . . . Hacking Detections 2 | . . . 2 Full Trace Events 1 | . . . 1 Feedback Events . | . . . . Feedback Blocked . | . . . . Robot Schematics Acquired . | . . . . Robots Built . | . . . . Authchips . | . . . . Time . | . . . . Total Robot Build Rating . | . . . . Part Schematics Acquired . | . . . . Parts Built . | . . . . Authchips . | . . . . Time . | . . . . Total Part Build Rating . | . . . . Parts Repaired 1 | . . . 1 Time 38 | . . . 38 Parts Recycled . | . . . . Recycled Matter . | . . . . Retrieved Matter . | . . . . Retrieved Components 9 | . . . 9 Parts Scanalyzed . | . . . . Part Schematics Acquired . | . . . . Parts Damaged . | . . . . Bothacking | -11 -10 -10 -9 ------------ Run | Yrd Mat Min Mat Used RIF Installer . | . . . . Robots Hacked . | . . . . Non-combat . | . . . . Combat . | . . . . Robot Hacks Applied . | . . . . Relay Couplers Released . | . . . . Fabnet Peak Effective % . | . . . . Robots Rewired . | . . . . Allies Hacked . | . . . . Hacks Repelled . | . . . . Allies | -11 -10 -10 -9 -------- Run | Yrd Mat Min Mat Total Allies . | . . . . Largest Group . | . . . . Highest-Rated Group . | . . . . Highest-Rated Ally . | . . . . Total Orders . | . . . . Ally Attacks . | . . . . Total Damage . | . . . . Kills . | . . . . Allies Corrupted 1 | . . . 1 Allies Melted 1 | . . 1 . Intel | -11 -10 -10 -9 ------- Run | Yrd Mat Min Mat Robot Analysis Total . | . . . . Derelict Logs Recovered 2 | . . 2 . Drone Launches 16 | . . . 16 Drone Recoveries . | . . . . Exploration | -11 -10 -10 -9 ------------- Run | Yrd Mat Min Mat Turns Passed 2839 | 121 1212 298 1208 Spaces Moved 2522 | 77 881 614 950 Core 55 | 8 2 . 45 Treads 628 | 69 559 . . Legs 84 | . . . 84 Wheels 224 | . . . 224 Hover 39 | . 39 . . Flight 1492 | . 281 614 597 Fastest Speed 37 | 50 37 37 37 Average Speed 83 | 148 117 37 76 Slowest Speed 370 | 160 160 40 370 Overloaded Moves . | . . . . Propulsion Burnouts . | . . . . Robots Hopped 2 | . . 1 1 Cave-ins Triggered . | . . . . Exploration Rate (%) 69 | 4 93 96 85 Regions Visited 3 Branch Regions 1 Pre-discovered Areas . | . . . . Known Exits Taken . | . . . . Unknown Exits Taken 3 | 1 1 1 . Scrap Searched 1 | . . 1 . Spaces Dug . | . . . . Terrain Destroyed 4 | . . . 4 Melee . | . . . . Projectile . | . . . . AOE 4 | . . . 4 Terrain Rammed . | . . . . Walls Destroyed . | . . . . Machines Disabled . | . . . . Actions | -11 -10 -10 -9 --------- Run | Yrd Mat Min Mat Total 2989 | 81 973 667 1268 Wait 191 | . 9 23 159 Move 2515 | 76 880 611 948 Hop 2 | . . 1 1 Pick Up 22 | . 9 2 11 Fast Attach 36 | 5 8 6 17 Attach 15 | . 2 4 9 Detach 10 | . 1 5 4 Swap 8 | . 7 . 1 Drop 26 | . 10 5 11 Fire 78 | . 32 . 46 Melee 81 | . 11 10 60 Ram . | . . . . Kick . | . . . . Crush 4 | . 4 . . Escape Stasis . | . . . . Rewire . | . . . . Trap 1 | . . . 1 Miscellaneous . | . . . . Route ------- -11/Scrapyard -10/Materials (discovered 3 exits: *Mat x2 / *Min) -10/Mines (discovered 3 exits: *Mat x2 / [*Exi]) -9/Materials (discovered 5 exits: *Mat x2 / [*Min x2] / [*Sto]) History --------- Turn | Location | Event 28 | -11/Scrapyard | Discovered new exit (range 15) 122 | -11/Scrapyard | Entered Materials 272 | -10/Materials | Discovered new exit (range 6) 311 | -10/Materials | Build established: Mutant 423 | -10/Materials | Discovered new exit (range 16) 759 | -10/Materials | Discovered new exit (range 16) 1334 | -10/Materials | Entered Mines 1336 | -10/Mines | Discovered new exit (range 12) 1348 | -10/Mines | Met a Derelict who couldn't figure out how to use a Trap Extractor 1359 | -10/Mines | Met a Derelict bent on vengeance 1441 | -10/Mines | Deemed a non-threat by the Exiles lab entrance 1441 | -10/Mines | Discovered new exit (range 6) 1467 | -10/Mines | A weapon hastily lodged in a ceiling crevice suddenly fell to the ground 1486 | -10/Mines | Learned Materials garrison access intel 1487 | -10/Mines | Found a damaged Exp. Sensor Array with a note attached 1488 | -10/Mines | Found Prototype Device 1488 | -10/Mines | Identified Exp. Sensor Array 1499 | -10/Mines | Learned location of 1 exit from Materials 1502 | -10/Mines | Discovered new exit (range 9) 1525 | -10/Mines | Found a hidden stash of uninstalled traps 1576 | -10/Mines | Found the Drone Emporium 1578 | -10/Mines | Found Prototype Device 1632 | -10/Mines | Entered Materials 1632 | -9/Materials | Evolved 2 slots: Propulsion x2 1633 | -9/Materials | Identified exit to Materials 1724 | -9/Materials | Lost 4 parts (2n2u) 1842 | -9/Materials | Core integrity fell below 50% 1908 | -9/Materials | Identified Decoy Drone Bay 1911 | -9/Materials | Lost 3 parts (1u2w) 1915 | -9/Materials | Discovered new exit (range 7) 2060 | -9/Materials | Core integrity fell below 20% 2112 | -9/Materials | Lost 5 parts (1p3n1w) 2153 | -9/Materials | Lost 8 allies 2158 | -9/Materials | Discovered new exit (range 12) 2172 | -9/Materials | Build established: Scavenger-Mutant 2482 | -9/Materials | Discovered new exit (range 7) 2761 | -9/Materials | Repaired Hvy. Flail 2803 | -9/Materials | Discovered exit to Materials (range 16) 2812 | -9/Materials | Build established: Mutant 2840 | -9/Materials | Destroyed by G-34 Mercenary with Small Laser Last Messages --------------- Ion Engine (86%) >>Retrieve(Components) Retrieving 9 components... Lgt. Treads Lgt. EM Pulse Cannon Ion Engine Flight Unit Lgt. Ion Engine Com. Wheel Hammer Aluminum Leg Decoy Drone Bay 02815_ ALERT: Suspicious activity at Recycling Unit M002. Dispatching Investigation squad. 02816_ Acquired Flight Unit. 02823_ K-01 Serf collects debris. 02833_ Door malfunctions. 02833_ W-16 Scout destroyed. 02839_ U-05 Engineer repairs door. 02840_ R-06 Scavenger collects Tractor Beam. Map ----- +----------------------------------------------------+ | ????????????????????????# #??# T# | | ????????????????????????# #??# #? | | ???????????????????????## #### #? | | ???????????????????????# #? | | ?????????????########### #? | | ?????????????# # """ #? | | ?????????????# # """ ## | | ?????????????# """ # """ # | | ?????????????# """"" # | | ?????????????# """"" + | | ?????????????# """"" # | | ?????????????# """ ## # | | ?????????????# ## ######### | | ?????????????############/######??? | | ??????????????????????# % #??? | | ????????#######???????# % [[ #??? | | ????????# #########% [!%#??? | | ????????# ## % #%%% % #### | | ????????# ## # % %+ | | ????????# "" ##""" #%"""" % #### | | ????????# """ ##""" ! # """%% #??? | | ????????# S" ##""" #%"""" #??? | | ??####### [ #? ?# % #??? | | ??# k###/######+########+####### | | ??# [ !u=%[*u r # | | ??# [%! @*%[ = g a # * " | | ??# *!= ! /= %=%== # " | | ??# ##########+######+#### " | | ??## ##????# """ ###!%==[ # | | ???# #?????# "R" ##="!! # ! " | | ???# #?????# " " ### # " | | ???# #?????# #?# [[ # " | | ???# ?#?????# !! #?# [[ # | | ???#? #?????# !! #?# [[ ###### | | ???# ?##############?# ######????? | | ???# # #?????##??????????? | | ???# # """ #?????????????????? | | ???# # """ #?????????????????? | | ???# + """ #?????????????????? | | ???# # * #?????????????????? | | ???# #""/ #?????????????????? | | ???# #"Y == #?????????????????? | | ???# #""*! #?????????????????? | | ???# # ]= #?????????????????? | | ???# ##########?????????????????? | | ???# #??????????????????????????? | | ???# #??????????????????????????? | | ???# < ???????????????????????????? | | ???# ???????????????????????????? | | ???####???????????????????????????? | +----------------------------------------------------+ Best States ------------- Heat Dissipation 28 Energy Generation 10 Energy Capacity 250 Matter Stores 300 Matter Capacity 300 Sight Range 16 Robot Scan Range 14 Terrain Scan Density 10 Armor Coverage 225 Resistance: KI 20 Resistance: TH 20 Resistance: EX 20 Resistance: EM 20 Resistance: I 20 Resistance: S 20 Resistance: P 20 Weapon Shielding 33 Evasion (%) 62 Recoil Reduction 2 Offensive Hacking 10 Trap Extractor Capacity 6 Item Schematics ----------------- None Robot Schematics ------------------ None Fabricated ------------ Nothing Alien Tech Used ----------------- None Achievements -------------- Slippery One Challenges ------------ None Game ------ Seed RecoilHeatSystem Manual? 0 Play Time 00:47:23 Cumulative 8.5 hours Start 2024.04.06 @ 19:37:33 End 2024.04.06 @ 21:34:47 Sessions 1 Manual Loads 0 Difficulty Adventurer Special Mode None Game No. 5 Rogue 0 Adventurer 5 Explorer 0 Win Type - Total 0 Types 0/0/0/0/0/0/0/0/0 Lore% 1 Gallery% 15 Achievement% 12 Wizard Run 0 Options --------- Layout 1 ASCII 0 Keyboard 0 Movement Mouse Keybinds 0 Fullscreen 1 Font 24/Smallcaps Map View 50x35 Zoom Use 0% Tactical HUD 1 Map Filters NONE Filters NONE Steam 1 RUN: 3ef6ae8c-d578-43a0-af90-ee15a1e2d484